lending/lending_fUSD_20240417
["ID","MTS","AMOUNT","RATE_DAILY","PERIOD"]
[322818529,1713360446102,500.0,0.000137,2]
[322818531,1713360510676,-712.03789368,0.00016867,2]
[322818533,1713360510703,-526.42706352,0.00016868,2]
[322818534,1713360510729,-289.6605743,0.00016868,2]
[322818535,1713360510761,-249.19780353,0.00016868,2]
[322818536,1713360510786,-323.30994326,0.00016868,2]
[322818537,1713360510811,-955.61778471,0.00016869,2]
[322818538,1713360510841,-657.77221529,0.00016869,2]
[322818539,1713360510871,-409.92,0.00016886,2]
[322818540,1713360510896,-155.0,0.00016897,2]
[322818541,1713360510922,-64.68162817,0.00016898,2]
[322818542,1713360510953,-139.1173088,0.00016898,2]
[322818543,1713360510978,-155.0,0.00016898,2]
[322818544,1713360511003,-651.75688469,0.000169,2]
[322818545,1713360511029,-249.68,0.00016906,2]
[322818546,1713360511057,-150.0,0.00016945,2]
[322818547,1713360511082,-150.0,0.00016945,2]
[322818548,1713360511108,-32.57133801,0.00016946,2]
[322818549,1713360511380,-1528.1255315,0.00016946,2]
[322818550,1713360511456,-1528.1255315,0.00016946,2]
[322818551,1713360511492,-1528.1255315,0.00016946,2]
[322818552,1713360511524,-1528.1255315,0.00016946,2]
[322818574,1713360631555,-150.0,0.00016945,2]
[322818575,1713360631565,-150.0,0.00016945,2]
[322818576,1713360631577,-203.15430007,0.00016946,2]
[322818577,1713360631617,-9203.1939149,0.00016946,2]
[322818578,1713360631630,-3753.33063171,0.00016946,2]
[322818579,1713360631672,-3378.55,0.00016946,2]
[322818581,1713360632503,-1216.69768931,0.00016946,2]
[322818582,1713360632512,-1733.79957996,0.00017052,2]
[322818583,1713360632524,-669.41025443,0.00017052,2]
[322818584,1713360632551,-907.64016561,0.00017052,2]
[322818585,1713360632560,-166.1,0.00017091,2]
[322818586,1713360632569,-166.1,0.0001724,2]
[322818587,1713360632581,-155.0,0.00017339,2]
[322818588,1713360632590,-203.79893697,0.0001734,2]
[322818589,1713360632600,-50.03625742,0.00017341,2]
[322818612,1713360637523,-240.44381919,0.00017341,2]
[322818613,1713360637534,-190.35618081,0.00017341,2]
[322818614,1713360637547,-2724.57381919,0.00017341,2]
[322818615,1713360637557,-166.1,0.00017388,2]
[322818616,1713360637567,-3755.16366527,0.00017436,2]
[322818617,1713360637578,-3159.30444615,0.00017436,2]
[322818618,1713360637587,-458.99,0.00017442,2]
[322818619,1713360637596,-300.0,0.00017462,2]
[322818620,1713360637605,-166.1,0.00017537,2]
[322818621,1713360637614,-161.48,0.00017581,2]
[322818622,1713360637623,-161.48,0.00017591,2]
[322818623,1713360637632,-161.48,0.00017602,2]
[322818624,1713360637641,-150.99,0.00017602,2]
[322818625,1713360637652,-190.2,0.00017602,2]
[322818626,1713360637661,-1858.82,0.00017613,2]
[322818627,1713360637670,-161.48,0.00017613,2]
[322818628,1713360637680,-161.48,0.00017623,2]
[322818629,1713360637689,-161.48,0.00017634,2]
[322818630,1713360637700,-161.48,0.00017644,2]
[322818631,1713360637709,-161.48,0.00017655,2]
[322818632,1713360637719,-161.48,0.00017665,2]
[322818633,1713360637728,-161.48,0.00017676,2]
[322818634,1713360637737,-166.1,0.00017685,2]
[322818635,1713360637746,-161.48,0.00017686,2]
[322818636,1713360637755,-166.1,0.00017833,2]
[322818637,1713360637766,-3498.2249,0.00017853,2]
[322818638,1713360637775,-166.1,0.00017982,2]
[322818639,1713360637785,-5977.27826535,0.000182,2]
[322818640,1713360637794,-345.0073831,0.00018254,2]
[322818641,1713360637803,-1243.31092697,0.00018254,2]
[322818642,1713360637813,-155.06317738,0.00018254,2]
[322818643,1713360637824,-423.80072817,0.00018254,2]
[322818644,1713360637833,-216.33333306,0.00018254,2]
[322818645,1713360637844,-155.20786741,0.00018255,2]
[322818646,1713360637854,-8897.30242736,0.00018255,2]
[322818647,1713360637863,-3790.4269809,0.00018255,2]
[322818648,1713360637873,-10128.39246375,0.00018256,2]
[322818649,1713360637886,-19602.84893625,0.00018256,2]
[322818650,1713360637897,-7909.0096,0.00018256,2]
[322818651,1713360637907,-9088.6985,0.00018256,2]
[322818653,1713360637916,-209.8011,0.00018256,2]
[322818656,1713360637927,-2500.0,0.00018256,2]
[322818657,1713360637936,-2377.70648986,0.00018256,2]
[322818659,1713360637946,-1306.09306684,0.00018256,2]
[322818661,1713360637957,-810.55744838,0.00018256,2]
[322818663,1713360637969,-3326.65916859,0.00018256,2]
[322818665,1713360637979,-695.65504494,0.00018256,2]
[322818667,1713360637988,-1222.95023345,0.00018354,2]
[322818669,1713360637998,-267.09258882,0.00018354,2]
[322818671,1713360638007,-234.81921605,0.00018354,2]
[322818674,1713360638017,-441.91078294,0.00018354,2]
[322818676,1713360638026,-1000.0,0.00018354,2]
[322818678,1713360638036,-1000.0,0.00018354,2]
[322818680,1713360638046,-1000.0,0.00018354,2]
[322818682,1713360638056,-1000.0,0.00018354,2]
[322818683,1713360638065,-1000.0,0.00018354,2]
[322818686,1713360638075,-1000.0,0.00018354,2]
[322818688,1713360638085,-1000.0,0.00018354,2]
[322818689,1713360638096,-1000.0,0.00018354,2]
[322818692,1713360638106,-1000.0,0.00018354,2]
[322818693,1713360638115,-1000.0,0.00018354,2]
[322818695,1713360638125,-1000.0,0.00018354,2]
[322818697,1713360638134,-1000.0,0.00018354,2]
[322818699,1713360638143,-1000.0,0.00018354,2]
[322818701,1713360638152,-878.34639076,0.00018354,2]
[322818704,1713360638164,-121.65360924,0.00018354,2]
[322818706,1713360638172,-708.88638175,0.00018354,2]
[322818707,1713360638186,-291.11361825,0.00018354,2]
[322818708,1713360638195,-1000.0,0.00018354,2]
[322818709,1713360638204,-1000.0,0.00018354,2]
[322818710,1713360638212,-1000.0,0.00018354,2]
[322818711,1713360638221,-1000.0,0.00018354,2]
[322818712,1713360638230,-1000.0,0.00018354,2]
[322818713,1713360638240,-1000.0,0.00018354,2]
[322818714,1713360638248,-1000.0,0.00018354,2]
[322818715,1713360638257,-1000.0,0.00018354,2]
[322818716,1713360638266,-1000.0,0.00018354,2]
[322818717,1713360638275,-1000.0,0.00018354,2]
[322818718,1713360638284,-1000.0,0.00018354,2]
[322818720,1713360638293,-1000.0,0.00018354,2]
[322818722,1713360638302,-1000.0,0.00018354,2]
[322818724,1713360638311,-1000.0,0.00018354,2]
[322818726,1713360638320,-1000.0,0.00018354,2]
[322818728,1713360638331,-1000.0,0.00018354,2]
[322818730,1713360638339,-1000.0,0.00018354,2]
[322818732,1713360638348,-412.32818945,0.00018354,2]
[322818735,1713360638359,-587.67181055,0.00018354,2]
[322818737,1713360638368,-1000.0,0.00018354,2]
[322818739,1713360638377,-1000.0,0.00018354,2]
[322818741,1713360638386,-1000.0,0.00018354,2]
[322818743,1713360638395,-922.89109459,0.00018354,2]
[322818971,1713360641005,-77.10890541,0.00018354,2]
[322818972,1713360641016,-1000.0,0.00018354,2]
[322818973,1713360641028,-1000.0,0.00018354,2]
[322818974,1713360641038,-1000.0,0.00018354,2]
[322818975,1713360641048,-1000.0,0.00018354,2]
[322818976,1713360641058,-520.66402189,0.00018354,2]
[322818977,1713360641070,-479.33597811,0.00018354,2]
[322818978,1713360641082,-1000.0,0.00018354,2]
[322818979,1713360641092,-451.89054942,0.00018354,2]
[322818980,1713360641106,-548.10945058,0.00018354,2]
[322818981,1713360641117,-1000.0,0.00018354,2]
[322818982,1713360641127,-1000.0,0.00018354,2]
[322818983,1713360641137,-1000.0,0.00018354,2]
[322818984,1713360641147,-1000.0,0.00018354,2]
[322818985,1713360641157,-1000.0,0.00018354,2]
[322818986,1713360641168,-1000.0,0.00018354,2]
[322818987,1713360641177,-14.29209943,0.00018354,2]
[322818989,1713360641190,-985.70790057,0.00018354,2]
[322818991,1713360641200,-1000.0,0.00018354,2]
[322818992,1713360641210,-1000.0,0.00018354,2]
[322818993,1713360641219,-1000.0,0.00018354,2]
[322818994,1713360641228,-1000.0,0.00018354,2]
[322818995,1713360641238,-1000.0,0.00018354,2]
[322818996,1713360641248,-1000.0,0.00018354,2]
[322818997,1713360641257,-1000.0,0.00018354,2]
[322818998,1713360641267,-1000.0,0.00018354,2]
[322818999,1713360641276,-1000.0,0.00018354,2]
[322819000,1713360641285,-1000.0,0.00018354,2]
[322819001,1713360641295,-1000.0,0.00018354,2]
[322819002,1713360641304,-1000.0,0.00018354,2]
[322819003,1713360641314,-246.30105486,0.00018354,2]
[322819025,1713360643097,-753.69894514,0.00018354,2]
[322819026,1713360643107,-1000.0,0.00018354,2]
[322819027,1713360643116,-1000.0,0.00018354,2]
[322819029,1713360643126,-748.14368763,0.00018354,2]
[322819030,1713360643262,-251.85631237,0.00018354,2]
[322819031,1713360643271,-1000.0,0.00018354,2]
[322819032,1713360643281,-1000.0,0.00018354,2]
[322819033,1713360643290,-1000.0,0.00018354,2]
[322819035,1713360643299,-1000.0,0.00018354,2]
[322819037,1713360643308,-1000.0,0.00018354,2]
[322819038,1713360643317,-1000.0,0.00018354,2]
[322819040,1713360643326,-1000.0,0.00018354,2]
[322819041,1713360643335,-1112.0,0.00018354,2]
[322819042,1713360643345,-5120.52654369,0.00018355,2]
[322819043,1713360643354,-1000.3617,0.00018355,2]
[322819044,1713360643363,-161.55498949,0.00018356,2]
[322819045,1713360643372,-1070968.31230482,0.00018356,2]
[322819046,1713360643383,-6243.8,0.00018356,2]
[322819047,1713360645857,-32300.0,0.00018356,2]
[322819048,1713360645868,-13220.2,0.00018356,2]
[322819049,1713360646538,-18619.38361456,0.00018356,2]
[322819050,1713360646563,-5480.0,0.00018356,2]
[322819051,1713360664120,489.45,0.00015862,2]
[322819654,1713361206642,464.97,0.00015409,2]
[322819663,1713361478279,1372.87743544,0.00016443,2]
[322819664,1713361478306,1477.40708456,0.00016443,2]
[322819666,1713361484957,360.44035088,0.00016443,2]
[322819667,1713361484982,1693.87305912,0.00016443,2]
[322819668,1713361570966,-203.79893697,0.00016524,2]
[322819669,1713361570989,-386.58996955,0.00016525,2]
[322819670,1713361571014,-1163.4872,0.00016696,2]
[322819671,1713361637484,461.0,0.000283,120]
[322819672,1713361661186,859.1088,0.00016745,2]
[322819673,1713361721699,-203.79893697,0.00016841,2]
[322819674,1713361721728,-150.0,0.00016842,2]
[322819675,1713361721757,-1272.26,0.00017007,2]
[322819676,1713361721784,-249.14300441,0.00017019,2]
[322819677,1713361721816,-78.79699559,0.00017019,2]
[322819678,1713361721843,-219.36,0.00017097,2]
[322819679,1713361721869,-377.66,0.00017152,2]
[322819680,1713361721895,-389.27,0.00017157,2]
[322819681,1713361721921,-150.0,0.00017178,2]
[322819682,1713361721948,-660.11494579,0.00017186,2]
[322819683,1713361721982,-721.55304626,0.00017186,2]
[322819684,1713361722065,-1875.20194138,0.00017186,2]
[322819685,1713361722095,-1875.20194138,0.00017186,2]
[322819686,1713361725198,460.52,0.00015215,2]
[322819706,1713361831731,-524.44,0.00017231,2]
[322819707,1713361831742,-162.34,0.00017252,2]
[322819708,1713361831753,-104.46822385,0.00017317,2]
[322819709,1713361831767,-567.59177615,0.00017317,2]
[322819710,1713361831778,-319.17452385,0.00017411,2]
[322819711,1713361831891,-23580.82547615,0.00017411,2]
[322819712,1713361831902,-2000.0,0.00017434,3]
[322819713,1713361831914,-3598.88593122,0.00017436,2]
[322819714,1713361831924,-1945.13350949,0.00017437,2]
[322819715,1713361831935,-626.10744486,0.00017437,2]
[322819716,1713361831945,-460.52,0.00017479,2]
[322819717,1713361831955,-809.62980294,0.00017628,2]
[322819718,1713361831966,-249.574848,0.00018082,2]
[322819719,1713361831976,-255.80174823,0.0001817,2]
[322819720,1713361831987,-17711.26537268,0.0001818,2]
[322819721,1713361831998,-657.97,0.0001818,2]
[322819722,1713361832008,-500.0,0.000182,2]
[322819723,1713361832018,-2139.93584082,0.00018254,2]
[322819724,1713361832029,-1175.48376012,0.00018254,2]
[322819725,1713361832042,-7218.86626549,0.00018256,2]
[322819726,1713361832055,-272.5981,0.00018256,2]
[322819727,1713361832068,-874.42505,0.00018256,2]
[322819728,1713361832081,-285.0091116,0.00018256,2]
[322819729,1713361832094,-1067.92374471,0.00018256,2]
[322819732,1713361832113,-994.06607205,0.00018256,2]
[322819734,1713361832126,-4287.11165615,0.00018256,2]
[322819737,1713361832136,-463.5859,0.00018256,2]
[322819739,1713361832146,-22337.57156855,0.000183,2]
[322819760,1713361832359,-33.94823797,0.000183,2]
[322819761,1713361832387,-621.77146932,0.000183,2]
[322819762,1713361832401,-1276.92449641,0.000183,2]
[322819763,1713361832415,-450.25,0.000183,2]
[322819764,1713361832429,-830.08689098,0.000183,2]
[322819774,1713361837728,-2741.94726217,0.000183,2]
[322819775,1713361837741,-323.71445876,0.000183,2]
[322819776,1713361837840,-1679.92741362,0.000183,2]
[322819777,1713361837851,-10271.08399766,0.000183,2]
[322819778,1713361837863,-5959.05002,0.000183,2]
[322819779,1713361837875,-12868.12665615,0.000183,2]
[322819780,1713361837886,-5501.000001,0.000183,2]
[322819781,1713361837899,-1309.14461714,0.000183,2]
[322819782,1713361837910,-10350.0,0.000183,2]
[322819783,1713361837923,-8616.1,0.000183,2]
[322819784,1713361837935,-3873.9,0.000183,2]
[322819785,1713361837957,-3062.67819403,0.000183,2]
[322819786,1713361837969,-62835.0,0.000183,2]
[322819787,1713361837980,-3145.75098022,0.000183,2]
[322819791,1713361840304,-1998.5,0.000183,2]
[322819792,1713361840317,-901.46094364,0.000183,2]
[322819793,1713361840330,-573.95719,0.000183,2]
[322819794,1713361840342,-502.6413364,0.000183,2]
[322819795,1713361840356,-1434.54173738,0.000183,2]
[322819796,1713361840368,-632.00351984,0.000183,2]
[322819797,1713361840380,-1691.51781414,0.000183,2]
[322819798,1713361840392,-1076.05428458,0.000183,2]
[322819799,1713361840405,-1927.64577303,0.000183,2]
[322819800,1713361840417,-1785.71493991,0.000183,2]
[322819801,1713361840900,-1028.443,0.000183,2]
[322819802,1713361840913,-642.18873986,0.000183,2]
[322819803,1713361841030,-334.86980469,0.000183,2]
[322819858,1713361842984,-719.79504945,0.000183,2]
[322819859,1713361843057,-1097.59227906,0.000183,2]
[322819860,1713361843114,-19622.02761,0.000183,2]
[322819861,1713361843171,-33117.54817162,0.000183,2]
[322819864,1713361843451,-22825.52154242,0.000183,2]
[322819865,1713361843461,-227.26443989,0.00018354,2]
[322819867,1713361843470,-215.83533507,0.00018354,2]
[322819869,1713361843480,-358.2105286,0.00018354,2]
[322819871,1713361843489,-1961.98000531,0.00018355,2]
[322819872,1713361843498,-1101206.51821917,0.00018356,2]
[322819878,1713361845872,-2173.63650702,0.00018356,2]
[322819879,1713361845929,-31413.04292749,0.00018356,2]
[322819880,1713361845987,-1002.38369143,0.00018356,2]
[322819881,1713361846254,-14142.09489944,0.00018356,2]
[322819888,1713362060834,150.0,0.00025779,120]
[322819889,1713362066851,500.0,0.000137,2]
[322819891,1713362236876,462.87,0.00014844,2]
[322819892,1713362237316,500.0,0.00016753,2]
[322819893,1713362345651,166.04,0.00016765,2]
[322819894,1713362346680,537.58418051,0.000168,2]
[322819895,1713362359541,14760.00091297,0.00016788,2]
[322819897,1713362719255,439.72,0.0001463,2]
[322819898,1713362848678,-2000.0,0.0001652,2]
[322819899,1713362849315,-2000.0,0.0001652,2]
[322819900,1713362849811,-2000.0,0.0001652,2]
[322819901,1713362850270,-2000.0,0.0001652,2]
[322819902,1713362850895,-2000.0,0.0001652,2]
[322819903,1713362850978,-2000.0,0.0001652,2]
[322819904,1713362851269,-2000.0,0.0001652,2]
[322819905,1713362851585,-2000.0,0.0001652,2]
[322819906,1713362852100,-2000.0,0.0001652,2]
[322819907,1713362852266,-2000.0,0.0001652,2]
[322819908,1713362852595,-2000.0,0.0001652,2]
[322819909,1713362852912,-2000.0,0.00016519,2]
[322819910,1713362853690,-2000.0,0.00016519,2]
[322819911,1713362853896,-2000.0,0.00016519,2]
[322819912,1713362854192,-2000.0,0.00016519,2]
[322819913,1713362854834,-1474.52,0.00016393,2]
[322819914,1713362854856,-525.48,0.00016519,2]
[322819915,1713362855159,-2000.0,0.00016519,2]
[322819916,1713362855481,-2000.0,0.00016519,2]
[322819917,1713362856039,-2000.0,0.00016519,2]
[322819918,1713362858464,-2000.0,0.00016519,2]
[322819919,1713362858916,-2000.0,0.00016519,2]
[322819920,1713362859224,-2000.0,0.00016519,2]
[322819921,1713362861137,-2000.0,0.00016519,2]
[322819922,1713362861245,-2000.0,0.00016519,2]
[322819923,1713362861275,-2000.0,0.00016519,2]
[322819924,1713362861300,-2000.0,0.00016519,2]
[322819925,1713362862876,-538.85837783,0.00016518,2]
[322819926,1713362862901,-1461.14162217,0.00016519,2]
[322819927,1713362863203,-2000.0,0.00016519,2]
[322819928,1713362863617,-2000.0,0.00016519,2]
[322819929,1713362864760,-1242.17057752,0.00016519,2]
[322819930,1713362864782,-757.82942248,0.0001652,2]
[322819933,1713362920893,-2000.0,0.0001646,2]
[322819934,1713362920947,-315.32,0.0001646,2]
[322819935,1713362920968,-1684.68,0.00016519,2]
[322819936,1713362921994,-749.05627992,0.00016519,2]
[322819937,1713362922015,-1250.94372008,0.00016519,2]
[322819938,1713362922632,-2000.0,0.00016519,2]
[322819939,1713362923338,-2000.0,0.00016519,2]
[322819940,1713362924024,-1963.01965492,0.00016519,2]
[322819941,1713362924046,-36.98034508,0.00016519,2]
[322819942,1713362924582,-1832.48160707,0.00016519,2]
[322819943,1713362924605,-167.51839293,0.0001652,2]
[322819944,1713362925162,-2000.0,0.0001652,2]
[322819945,1713362925811,-2000.0,0.0001652,2]
[322819946,1713362926468,-2000.0,0.0001652,2]
[322819947,1713362927745,-2000.0,0.0001652,2]
[322819948,1713362928191,-2000.0,0.0001652,2]
[322819949,1713362928554,-2000.0,0.0001652,2]
[322819950,1713362928892,-2000.0,0.0001652,2]
[322819951,1713362929261,-2000.0,0.0001652,2]
[322819952,1713362930133,-2000.0,0.0001652,2]
[322819953,1713362930584,-2000.0,0.0001652,2]
[322819954,1713362931015,-2000.0,0.0001652,2]
[322819955,1713362931702,-2000.0,0.0001652,2]
[322819956,1713362932015,1321.6659688,0.0001354,2]
[322819957,1713362932043,391.23639065,0.0001354,2]
[322819958,1713362932070,33.84030813,0.0001354,2]
[322819959,1713362933701,-1241.11650794,0.00016519,2]
[322819960,1713362933724,-758.88349206,0.0001652,2]
[322819964,1713362948003,258.71725893,0.0001354,2]
[322819965,1713363004036,1746.74266758,0.0001354,2]
[322819966,1713363008702,15710.36235212,0.00015,2]
[322819967,1713363009918,15934.83351181,0.0001354,2]
[322819968,1713363011201,365.54148364,0.0001354,2]
[322819969,1713363024010,1746.74266758,0.0001354,2]
[322819970,1713363031120,209.20058154,0.0001354,2]
[322819992,1713363031951,-621.43649881,0.00016517,2]
[322819993,1713363031961,-1861.04350119,0.00016517,2]
[322819994,1713363031972,-492.57659395,0.00016517,2]
[322819995,1713363031988,-709.37578356,0.00016518,2]
[322819996,1713363031998,-389.82742251,0.0001652,2]
[322819997,1713363032033,-5319.6446043,0.0001652,2]
[322819998,1713363032042,-195.10113426,0.00016523,2]
[322819999,1713363032052,-827.11,0.00016529,2]
[322820000,1713363032061,-2000.0,0.00016529,3]
[322820001,1713363032070,-200.0,0.00016569,2]
[322820002,1713363032080,-500.0,0.00016623,2]
[322820003,1713363032089,-879.03,0.00016634,2]
[322820004,1713363032099,-1273.93,0.00016635,2]
[322820005,1713363032109,-657.97,0.00016635,2]
[322820006,1713363032119,-262.36,0.00016663,2]
[322820007,1713363032129,-745.74,0.00016701,2]
[322820008,1713363032138,-150.0,0.00016743,2]
[322820009,1713363032148,-809.62980294,0.00016744,2]
[322820010,1713363032157,-9139.99908703,0.00016788,2]
[322820011,1713363032167,-163.02,0.00016796,2]
[322820012,1713363032176,-439.72,0.00016894,2]
[322820013,1713363032185,-163.02,0.00016971,2]
[322820014,1713363032194,-1241.11650794,0.00017145,2]
[322820015,1713363032203,-163.02,0.00017146,2]
[322820016,1713363032213,-150.0,0.00017186,2]
[322820017,1713363032222,-150.99,0.00017186,2]
[322820018,1713363032238,-1945.13350949,0.00017246,2]
[322820019,1713363032248,-626.10744486,0.00017247,2]
[322820020,1713363032257,-271.524453,0.0001726,2]
[322820021,1713363032266,-163.02,0.00017321,2]
[322820022,1713363032276,-168.43,0.0001735,2]
[322820023,1713363032285,-737.64,0.00017352,2]
[322820024,1713363032295,-163.02,0.00017496,2]
[322820025,1713363032304,-163.02,0.00017671,2]
[322820026,1713363032314,-684.0,0.00017836,2]
[322820027,1713363032324,-559.6067,0.00017956,2]
[322820028,1713363032334,-794.453,0.00017956,2]
[322820029,1713363032343,-2154.2782,0.00017956,2]
[322820030,1713363032352,-1444.3388,0.00017956,2]
[322820031,1713363032362,-511.1329,0.00017956,2]
[322820032,1713363032371,-1000.0,0.00017956,2]
[322820033,1713363032381,-2467.61786666,0.00017968,2]
[322820034,1713363032691,-1175.48376012,0.00017968,2]
[322820035,1713363032706,-255.80174823,0.00017972,2]
[322820036,1713363032715,-510.0,0.00018028,2]
[322820037,1713363032724,-251.14525574,0.00018054,2]
[322820038,1713363032739,-405.34533627,0.00018054,2]
[322820039,1713363032748,-3581.26747141,0.00018054,2]
[322820040,1713363032758,-1222.9503819,0.00018054,2]
[322820041,1713363032768,-325.39312351,0.00018054,2]
[322820042,1713363032777,-1994.17793618,0.00018054,2]
[322820043,1713363032786,-287.48806019,0.00018054,2]
[322820044,1713363032796,-464.99858771,0.00018055,2]
[322820045,1713363032805,-4328.00567951,0.00018055,2]
[322820046,1713363032814,-110234.8142,0.00018056,2]
[322820047,1713363032823,-151.59560143,0.00018068,2]
[322820048,1713363032833,-248.69915935,0.0001808,2]
[322820049,1713363032842,-271.524453,0.00018082,2]
[322820050,1713363032852,-248.69915935,0.00018124,2]
[322820051,1713363032862,-292248.27178373,0.00018156,2]
[322820052,1713363032871,-248.69915935,0.00018168,2]
[322820053,1713363032880,-1762.37175,0.0001817,2]
[322820054,1713363032890,-17711.26537268,0.0001818,2]
[322820055,1713363032899,-1000.0,0.0001818,2]
[322820056,1713363032909,-1000.0,0.0001818,2]
[322820057,1713363032919,-1000.0,0.0001818,2]
[322820058,1713363032928,-1000.0,0.0001818,2]
[322820059,1713363032937,-598.0,0.0001818,2]
[322820060,1713363032947,-500.0,0.000182,2]
[322820061,1713363032956,-1058.7341,0.000182,2]
[322820062,1713363032966,-500.21272504,0.000182,2]
[322820063,1713363032974,-500.0,0.00018209,2]
[322820064,1713363032987,-248.69915935,0.00018212,2]
[322820065,1713363032997,-1000.0,0.00018212,2]
[322820066,1713363033007,-1000.0,0.00018212,2]
[322820067,1713363033017,-1000.0,0.00018212,2]
[322820068,1713363033027,-502.0,0.00018212,2]
[322820069,1713363033036,-2703.0,0.00018237,2]
[322820070,1713363033046,-5887.0,0.00018237,2]
[322820071,1713363033055,-13263.305,0.00018237,2]
[322820072,1713363033064,-1054.0,0.00018237,2]
[322820073,1713363033074,-4289.1781,0.00018256,2]
[322820074,1713363033084,-566.5425,0.00018256,2]
[322820075,1713363033094,-1000.0,0.00018256,2]
[322820076,1713363033104,-3049.43757118,0.00018256,2]
[322820077,1713363033113,-248.69915935,0.00018256,2]
[322820078,1713363033122,-599.65727188,0.00018256,2]
[322820079,1713363033132,-463.77002996,0.00018256,2]
[322820080,1713363033141,-155.26178671,0.0001829,2]
[322820081,1713363033150,-2467.61786659,0.00018294,2]
[322820082,1713363033160,-1175.48376008,0.00018294,2]
[322820083,1713363033169,-51790.20562574,0.000183,2]
[322820084,1713363033183,-5931.3455,0.000183,2]
[322820085,1713363033194,-6989.9674728,0.000183,2]
[322820086,1713363033206,-22172.99489823,0.000183,2]
[322820087,1713363033217,-22714.8706778,0.000183,2]
[322820088,1713363033232,-492.26388,0.000183,2]
[322820089,1713363033264,-9303.18826743,0.000183,2]
[322820090,1713363033294,-13429.80678648,0.000183,2]
[322820091,1713363033306,-117175.35689152,0.000183,2]
[322820092,1713363033316,-650.82624395,0.000183,2]
[322820093,1713363033325,-150.0,0.000183,2]
[322820094,1713363033335,-170.49,0.00018339,2]
[322820095,1713363033346,-426.29664907,0.00018345,2]
[322820096,1713363033355,-209.90057592,0.00018354,2]
[322820097,1713363033365,-343.41118494,0.00018354,2]
[322820098,1713363033374,-307.07568995,0.00018354,2]
[322820099,1713363033384,-155.36235237,0.00018354,2]
[322820100,1713363033394,-1471.6153564,0.00018354,2]
[322820101,1713363033404,-407.93141682,0.00018354,2]
[322820102,1713363033413,-155.0,0.00018354,2]
[322820103,1713363033423,-201.64654272,0.00018354,2]
[322820104,1713363033432,-155.43445006,0.00018354,2]
[322820105,1713363033442,-779.7842727,0.00018354,2]
[322820106,1713363033451,-155.0,0.00018354,2]
[322820107,1713363033461,-407.61661465,0.00018354,2]
[322820108,1713363033471,-155.34524345,0.00018354,2]
[322820109,1713363033482,-1843.04829031,0.00018354,2]
[322820110,1713363033491,-410.46719331,0.00018354,2]
[322820111,1713363033500,-3750.88280108,0.00018354,2]
[322820112,1713363033509,-261.7441955,0.00018354,2]
[322820113,1713363033519,-705.05491754,0.00018354,2]
[322820114,1713363033528,-3377.82594417,0.00018354,2]
[322820115,1713363033538,-167.0153964,0.00018354,2]
[322820116,1713363033547,-155.0,0.00018354,2]
[322820117,1713363033557,-483.30142374,0.00018354,2]
[322820118,1713363033566,-155.45247708,0.00018354,2]
[322820119,1713363033576,-483.32806548,0.00018354,2]
[322820120,1713363033586,-1864.84962808,0.00018354,2]
[322820121,1713363033596,-155.80581312,0.00018354,2]
[322820122,1713363033607,-262.99814101,0.00018354,2]
[322820123,1713363033617,-2210.85563473,0.00018354,2]
[322820124,1713363033627,-376.06413625,0.00018354,2]
[322820125,1713363033636,-2309.58858575,0.00018354,2]
[322820126,1713363033647,-155.0,0.00018354,2]
[322820127,1713363033657,-18715.79805901,0.00018354,2]
[322820128,1713363033666,-1300.87694258,0.00018354,2]
[322820129,1713363033676,-1126.23059818,0.00018354,2]
[322820130,1713363033687,-216.4059465,0.00018354,2]
[322820131,1713363033697,-192.36220435,0.00018354,2]
[322820132,1713363033707,-231.82952094,0.00018354,2]
[322820133,1713363033718,-638.8205153,0.00018354,2]
[322820134,1713363033731,-1059.74600206,0.00018354,2]
[322820135,1713363033743,-385.82293825,0.00018354,2]